bitfinex/quotes_ETHUSD_20240823
["timestamp","ask_amount","ask_price","bid_price","bid_amount"]
[1724442601348,5.3411,2749.7,2749.0,3.63757]
[1724442601719,5.1828,2750.2,2749.2,4.24281883]
[1724442601921,2.1751,2751.3,2749.7,5.1471]
[1724442601922,5.1828,2750.4,2749.7,5.1471]
[1724442602525,5.0802,2750.9,2749.7,8.78383]
[1724442602867,0.50802,2750.8,2749.6,3.63679]
[1724442603073,5.0802,2750.7,2749.6,3.63679]
[1724442603594,5.0802,2750.5,2749.2,5.2603]
[1724442603788,5.0802,2750.3,2749.2,5.2603]
[1724442604480,5.0802,2750.2,2749.2,5.2603]
[1724442605304,5.0802,2750.2,2748.9,7.88053883]
[1724442605446,5.3652,2750.0,2748.7,8.58723]
[1724442605650,5.3652,2750.0,2748.9,3.63769]
[1724442605830,5.3652,2750.0,2749.0,5.1853]
[1724442606045,5.3652,2750.0,2748.7,7.88084883]
[1724442606348,5.3652,2750.0,2748.7,11.51883883]
[1724442606570,5.0037,2749.8,2748.7,7.88080883]
[1724442607136,5.0037,2749.8,2748.6,8.82346]
[1724442607906,5.0037,2749.8,2748.7,3.63808]
[1724442608033,5.0037,2749.8,2748.6,8.82346]
[1724442608034,5.0037,2749.8,2748.6,8.82342]
[1724442610461,5.4863,2749.6,2748.2,5.9442143]
[1724442610705,5.4863,2749.5,2748.3,3.63859]
[1724442611024,5.4863,2749.5,2748.2,9.2034331]
[1724442611193,3.0,2749.4,2748.2,5.5648231]
[1724442611402,5.4863,2749.3,2748.2,9.2034831]
[1724442611700,5.4863,2749.3,2748.2,12.8421231]
[1724442611901,5.4863,2749.3,2748.2,9.2034631]
[1724442612201,5.4863,2749.3,2748.4,3.63843]
[1724442612496,5.4863,2749.3,2748.3,4.24281883]
[1724442612497,5.4863,2749.3,2748.5,3.63823]
[1724442612853,5.4863,2749.3,2748.2,0.5492178]
[1724442613105,5.4863,2749.3,2748.2,3.5492178]
[1724442613900,5.3156,2749.3,2748.2,7.1879378]
[1724442614080,5.3156,2749.3,2748.3,3.63861]
[1724442614613,5.3156,2749.3,2748.3,12.67182]
[1724442614763,5.3156,2749.3,2748.3,5.3948]
[1724442614962,5.3156,2749.3,2748.2,7.1878778]
[1724442615496,5.3156,2749.3,2748.5,3.63834]
[1724442615643,5.3156,2749.3,2748.5,12.75387]
[1724442615849,5.3156,2749.3,2748.5,9.11553]
[1724442616045,5.3156,2749.3,2748.3,7.88136883]
[1724442616275,5.3156,2749.3,2748.3,3.63855]
[1724442616665,5.3156,2749.3,2748.3,7.27708]
[1724442616999,5.3156,2749.3,2748.4,3.63845]
[1724442617302,5.3156,2749.3,2748.5,3.63825]
[1724442617510,5.3156,2749.3,2748.3,4.24281883]
[1724442617652,5.3156,2749.3,2748.2,9.0265178]
[1724442619234,5.3156,2749.3,2748.3,3.63858]
[1724442619447,5.4285,2749.1,2748.2,0.3791947]
[1724442619604,5.4285,2748.7,2747.5,3.63962]
[1724442619785,5.4285,2748.4,2747.0,25.1861]
[1724442619985,5.4285,2748.4,2747.1,7.2802]
[1724442620285,5.4285,2748.4,2747.1,7.28022]
[1724442620485,3.63865,2748.3,2747.0,25.1861]
[1724442620712,3.63923,2747.9,2747.0,20.0]
[1724442620916,5.0701,2747.7,2747.0,20.0]
[1724442621231,8.70978,2747.5,2747.0,20.0]
[1724442621431,5.0701,2747.4,2747.0,20.0]
[1724442621641,5.0701,2747.1,2747.0,19.34076309]
[1724442622401,5.0701,2747.5,2747.0,19.34076309]
[1724442623023,8.2531,2747.9,2747.0,19.34076309]
[1724442623204,5.2531,2747.9,2747.0,19.34076309]
[1724442623420,3.0,2747.8,2747.0,19.34076309]
[1724442624413,5.2531,2747.7,2747.0,19.34076309]
[1724442627443,3.0,2747.8,2747.0,19.34076309]
[1724442627642,3.0,2747.9,2747.0,19.34076309]
[1724442627850,1.159101,2747.8,2747.0,19.34076309]
[1724442628005,4.952,2747.7,2747.0,19.34076309]
[1724442631649,3.0,2747.9,2747.0,24.76106309]
[1724442631862,3.63852,2748.4,2747.0,28.40137309]
[1724442631863,5.3977,2748.0,2747.0,28.40137309]
[1724442632003,3.0,2747.9,2747.0,28.40137309]
[1724442632208,3.0,2747.9,2747.0,24.76106309]
[1724442632548,5.0667,2748.3,2747.0,28.40130309]
[1724442632747,5.0667,2748.3,2747.3,3.63981]
[1724442633075,5.0667,2748.3,2747.4,0.07278735]
[1724442633548,0.54285,2748.6,2747.4,0.07278735]
[1724442633549,0.54285,2748.6,2747.4,3.63971]
[1724442634448,4.18106,2748.6,2747.3,5.1648]
[1724442635148,3.0,2748.5,2747.3,5.1648]
[1724442636251,0.54285,2748.6,2747.0,23.36011266]
[1724442636252,3.63869,2748.3,2747.0,28.74471266]
[1724442636557,5.2873,2748.1,2747.0,25.10444266]
[1724442636735,5.2873,2748.1,2747.0,24.72536309]
[1724442637848,5.2873,2748.1,2747.1,3.64016]
[1724442638785,3.0,2748.2,2747.1,5.2756]
[1724442638956,3.0,2748.3,2747.3,3.6398]
[1724442639620,3.0,2748.3,2747.2,4.79281883]
[1724442639862,3.0,2748.3,2747.2,8.43279883]
[1724442640064,3.0,2748.3,2747.2,4.79281883]
[1724442640374,0.80938,2748.2,2747.2,8.43276883]
[1724442640587,3.0,2748.3,2747.3,3.63992]
[1724442640798,3.0,2748.3,2747.2,8.43276883]
[1724442641584,3.0,2748.3,2747.2,4.18995]
[1724442641785,6.63862,2748.3,2747.2,0.55]
[1724442641988,3.63875,2748.2,2747.1,5.2756]
[1724442642145,3.0,2748.1,2747.1,5.2756]
[1724442642493,1.173242,2748.2,2747.1,5.2756]
[1724442642861,3.63903,2748.0,2747.1,5.2756]
[1724442643192,3.63898,2748.1,2747.1,5.2756]
[1724442643417,5.1285,2748.0,2747.1,5.2756]
[1724442643560,1.240645,2747.9,2747.0,19.34076309]
[1724442643889,5.1285,2747.8,2747.0,19.34076309]
[1724442644091,3.63968,2747.5,2747.0,19.34076309]
[1724442644250,5.1285,2747.4,2747.0,19.34076309]
[1724442645346,3.63995,2747.3,2747.0,19.34076309]
[1724442645548,4.9783,2747.1,2747.0,19.34076309]
[1724442645858,8.6185,2747.1,2747.0,19.34076309]
[1724442646061,11.6185,2747.1,2747.0,19.34076309]
[1724442646595,11.6185,2747.1,2747.0,19.0763386]
[1724442647282,11.6185,2747.1,2747.0,15.61246671]
[1724442647446,13.2320295,2747.1,2747.0,15.61246671]
[1724442647652,9.5918295,2747.1,2747.0,15.61246671]
[1724442648108,3.0,2747.1,2747.0,15.61246671]
[1724442648303,5.3669,2747.5,2747.0,15.61246671]
[1724442648609,3.0,2747.4,2747.0,15.61246671]
[1724442650288,4.879815,2747.9,2747.0,15.61246671]
[1724442650289,6.607545,2747.9,2747.0,15.61246671]
[1724442650496,5.3669,2747.9,2747.0,15.61246671]
[1724442651133,5.3669,2747.9,2747.0,20.84416671]
[1724442651701,3.0,2747.8,2747.0,20.84416671]
[1724442652677,6.63929,2747.8,2747.0,20.84416671]
[1724442652934,6.63929,2747.8,2747.0,15.61246671]
[1724442653244,4.840029,2747.7,2747.0,15.61246671]
[1724442653575,3.0,2747.6,2747.0,15.61246671]
[1724442653836,6.63962,2747.6,2747.0,15.61246671]
[1724442656028,3.0,2747.6,2747.0,15.61246671]
[1724442656226,4.200619,2747.7,2747.0,21.01406671]
[1724442656425,1.200619,2747.7,2747.0,21.01406671]
[1724442656934,0.4200619,2747.6,2747.0,21.01406671]
[1724442657221,3.6388,2748.2,2747.0,21.01406671]
[1724442657222,3.63863,2748.3,2747.0,21.01406671]
[1724442658198,8.66974,2748.4,2747.1,5.47439401]
[1724442658408,0.06338317,2748.6,2747.2,5.4016]
[1724442658698,3.63862,2748.3,2747.2,5.4016]
[1724442658937,0.50945832,2748.5,2747.2,5.4016]
[1724442659140,0.50945832,2748.5,2747.3,3.63992]
[1724442659342,0.50945832,2748.5,2747.0,15.99150867]
[1724442659343,4.14780832,2748.5,2747.4,5.4016]
[1724442659544,3.0,2748.4,2747.4,5.4016]
[1724442659707,0.71478083,2748.3,2747.4,5.4016]
[1724442661097,0.06337649,2748.9,2747.6,5.0909]
[1724442661311,3.63802,2748.8,2747.6,5.0909]
[1724442661919,3.63818,2748.7,2747.6,5.0909]
[1724442662414,6.63822,2748.6,2747.6,5.0909]
[1724442663352,3.63847,2748.5,2747.6,5.0909]
[1724442663650,4.027669,2748.4,2747.6,5.0909]
[1724442665219,3.0,2748.6,2747.6,5.0909]
[1724442665615,6.63824,2748.6,2747.6,5.0909]
[1724442665949,3.0,2748.6,2747.6,5.0909]
[1724442666310,6.63823,2748.6,2747.6,5.0909]
[1724442666742,3.0,2748.6,2747.6,5.0909]
[1724442666941,1.027627,2748.5,2747.6,5.0909]
[1724442667278,4.665997,2748.5,2747.6,5.0909]
[1724442667481,3.63856,2748.4,2747.6,5.0909]
[1724442667622,6.63856,2748.4,2747.6,5.0909]
[1724442668267,3.63862,2748.3,2747.6,5.0909]
[1724442669559,7.27732,2748.3,2747.6,5.0909]
[1724442669754,1.027732,2748.2,2747.6,5.0909]
[1724442670977,3.0,2748.4,2747.6,5.0909]
[1724442671468,6.63848,2748.4,2747.6,5.0909]
[1724442673446,3.0,2748.4,2747.6,5.0909]
[1724442673647,3.0,2748.5,2747.7,5.0217]
[1724442673954,3.0,2748.9,2747.8,5.0217]
[1724442674137,0.663771,2748.8,2747.8,5.0217]
[1724442674899,3.63808,2748.7,2747.8,5.0217]
[1724442675105,3.0,2748.6,2747.8,5.0217]
[1724442675459,3.63791,2748.9,2747.8,5.0217]
[1724442675460,3.0,2748.8,2747.8,5.0217]
[1724442675979,3.0,2749.0,2747.8,5.0217]
[1724442676187,3.63805,2748.8,2747.8,5.0217]
[1724442676388,3.727596,2748.7,2747.8,5.0217]
[1724442676991,0.727596,2748.7,2747.8,5.0217]
[1724442679964,4.365686,2748.7,2747.8,5.0217]
[1724442680181,3.0,2748.6,2747.8,5.0217]
[1724442683316,0.727596,2748.7,2747.8,5.0217]
[1724442683527,0.3727596,2748.6,2747.8,5.0217]
[1724442684221,3.3727596,2748.6,2747.8,5.0217]
[1724442686722,3.63868,2748.3,2747.8,5.0217]
[1724442686894,3.63841,2748.5,2747.8,5.0217]
[1724442687224,3.0,2748.4,2747.8,5.0217]
[1724442687394,0.663841,2748.3,2747.8,5.0217]
[1724442688919,6.208241,2748.3,2747.2,5.4433]
[1724442689092,3.63895,2748.1,2747.2,5.4433]
[1724442689504,3.63875,2748.2,2747.2,5.4433]
[1724442689724,3.9846991,2748.1,2747.2,5.4433]
[1724442690138,7.302461,2748.3,2747.2,5.4433]
[1724442690730,3.663841,2748.3,2747.2,5.4433]
[1724442690887,0.663841,2748.3,2747.2,5.4433]
[1724442691084,4.302481,2748.3,2747.2,5.4433]
[1724442691290,3.7302481,2748.2,2747.2,5.4433]
[1724442691494,3.63902,2748.0,2747.2,5.4433]
[1724442691734,7.3690681,2748.2,2747.2,5.4433]
[1724442692635,3.7302481,2748.2,2747.2,5.4433]
[1724442692818,3.7302481,2748.2,2747.1,3.64012]
[1724442692819,3.0,2748.4,2747.4,5.5285]
[1724442693139,3.0,2748.6,2747.6,3.63951]
[1724442693441,6.30173605,2749.1,2747.6,5.5285]
[1724442693442,3.6379,2748.9,2747.6,5.5285]
[1724442693603,3.0,2748.8,2747.6,5.5285]
[1724442694241,3.0,2748.8,2747.8,5.5285]
[1724442694409,0.3,2748.8,2747.9,5.5285]
[1724442694805,3.3,2748.8,2747.9,5.5285]
[1724442695194,3.63708,2749.5,2748.1,5.1889]
[1724442695389,3.63676,2749.7,2748.4,5.1889]
[1724442695738,3.63676,2749.7,2748.6,5.1889]
[1724442696543,3.63652,2749.9,2748.6,5.1889]
[1724442696544,3.6367,2749.8,2748.6,5.1889]
[1724442697203,3.63654,2749.9,2748.6,5.1889]
[1724442697393,0.363654,2749.8,2748.6,5.1889]
[1724442697891,3.63638,2750.0,2748.7,5.1889]
[1724442698101,3.63638,2750.0,2748.0,4.1889]
[1724442698102,3.63571,2750.5,2749.1,3.63755]
[1724442698293,3.63583,2750.4,2749.2,5.1889]
[1724442698533,3.63597,2750.3,2749.2,5.1889]
[1724442698947,3.63638,2750.0,2749.2,5.1889]
[1724442699124,0.363638,2749.9,2749.2,5.1889]
[1724442699907,3.636,2750.3,2749.2,5.1889]
[1724442700666,3.0,2750.2,2749.2,5.1889]
[1724442701945,6.63611,2750.2,2749.2,5.1889]
[1724442702171,3.0,2750.2,2749.2,5.1889]
[1724442702291,3.6365,2749.9,2749.2,5.1889]
[1724442702497,0.36365,2749.8,2749.2,5.1889]
[1724442702697,3.0,2750.0,2749.2,5.1889]
[1724442702934,6.63646,2750.0,2749.2,5.1889]
[1724442703500,3.6365,2749.9,2749.2,5.1889]
[1724442703825,4.23405817,2749.9,2749.2,5.1889]
[1724442704137,3.63704,2749.5,2749.2,5.1889]
[1724442704340,0.363704,2749.4,2749.2,5.1889]
[1724442705552,0.363704,2749.4,2748.1,7.27762]
[1724442705553,4.000864,2749.4,2749.0,5.4268]
[1724442706260,0.363704,2749.4,2749.0,5.4268]
[1724442708041,3.363704,2749.4,2747.7,15.31339817]
[1724442708277,4.3374704,2749.3,2748.0,5.4268]
[1724442708442,3.0,2749.2,2748.1,5.4268]
[1724442708805,3.0,2749.2,2748.0,4.23405817]
[1724442708806,3.0,2749.4,2748.6,5.4268]
[1724442708935,3.0,2749.6,2748.6,5.4268]
[1724442709657,3.63702,2749.5,2748.6,5.4268]
[1724442709857,3.663702,2749.4,2748.6,5.4268]
[1724442710860,7.300892,2749.4,2748.6,5.4268]
[1724442711017,3.663702,2749.4,2748.6,5.4268]
[1724442712340,3.63731,2749.3,2748.6,5.4268]
[1724442712869,3.663702,2749.4,2748.6,5.4268]
[1724442713088,0.7300722,2749.3,2748.6,5.4268]
[1724442713731,3.63682,2749.7,2748.6,5.4268]
[1724442713732,6.63692,2749.6,2748.6,5.4268]
[1724442713927,3.0,2749.6,2748.6,5.4268]
[1724442714958,6.63689,2749.6,2748.6,5.4268]
[1724442715355,3.0,2749.6,2748.6,5.4268]
[1724442715572,3.63725,2749.4,2748.6,5.4268]
[1724442715771,5.5388,2749.7,2748.6,5.4268]
[1724442715772,3.63749,2749.2,2748.6,5.4268]
[1724442716157,3.63756,2749.1,2748.6,5.4268]
[1724442716675,3.63769,2749.0,2748.6,5.4268]
[1724442717172,3.63781,2748.9,2748.6,5.4268]
[1724442717499,3.63781,2748.9,2747.8,5.3477]
[1724442717636,0.72755,2748.8,2747.8,5.3477]
[1724442717833,4.36552,2748.8,2747.8,5.3477]
[1724442718492,0.72755,2748.8,2747.8,5.3477]
[1724442718675,3.63769,2749.0,2747.8,5.3477]
[1724442719868,4.23405817,2749.0,2747.8,5.3477]
[1724442720052,3.0,2748.9,2747.8,5.3477]
[1724442720258,3.63822,2748.6,2747.8,5.3477]
[1724442720562,3.0,2748.5,2747.8,5.3477]
[1724442720748,0.3,2748.4,2747.8,5.3477]
[1724442720954,6.63808,2748.7,2747.8,5.3477]
[1724442721263,3.0,2748.7,2747.8,5.3477]
[1724442722870,3.0,2748.9,2747.9,5.3477]
[1724442723069,6.63768,2749.0,2747.9,5.3477]
[1724442723256,0.663768,2748.9,2748.0,5.4708]
[1724442723788,0.363725,2749.3,2748.3,5.1663]
[1724442723951,3.63697,2749.6,2748.3,5.1663]
[1724442724150,3.63703,2749.5,2748.3,5.1663]
[1724442724696,3.63697,2749.6,2748.3,5.1663]
[1724442724880,3.63667,2749.8,2748.5,5.2978]
[1724442725198,0.363667,2749.7,2748.6,5.2978]
[1724442725680,7.27391,2749.6,2748.6,5.2978]
[1724442725866,3.63703,2749.5,2748.6,5.2978]
[1724442726298,0.363667,2749.7,2748.6,5.2978]
[1724442726506,3.63697,2749.6,2748.6,5.2978]
[1724442726707,3.7000637,2749.5,2748.6,5.2978]
[1724442727982,3.363667,2749.7,2748.6,5.2978]
[1724442728285,7.000497,2749.7,2748.6,5.2978]
[1724442728887,7.000467,2749.7,2748.6,5.2978]
[1724442730108,3.63691,2749.6,2748.6,5.2978]
[1724442730319,3.0,2749.5,2748.6,5.2978]
[1724442730464,3.63624,2750.1,2748.7,5.2195]
[1724442730665,3.63624,2750.1,2748.9,5.2195]
[1724442730874,5.4661,2750.4,2748.9,5.2195]
[1724442730875,7.87027817,2750.2,2748.9,5.2195]
[1724442731085,4.23405817,2750.2,2748.9,5.2195]
[1724442731290,3.6371,2749.5,2748.9,5.2195]
[1724442731488,7.27317,2749.9,2748.9,5.2195]
[1724442731808,3.63655,2749.9,2748.9,5.2195]
[1724442731977,3.63684,2749.7,2748.9,5.2195]
[1724442732466,3.63691,2749.6,2748.9,5.2195]
[1724442732667,0.727375,2749.5,2748.9,5.2195]
[1724442732884,7.27369,2749.7,2748.9,5.2195]
[1724442733078,7.27369,2749.7,2748.0,4.23405817]
[1724442733079,7.87163817,2749.1,2747.8,3.63918]
[1724442733309,3.63739,2749.3,2747.9,3.63901]
[1724442733710,3.0,2749.2,2748.0,3.639]
[1724442734001,0.663739,2749.1,2748.0,3.639]
[1724442734414,0.663739,2749.1,2748.1,3.63882]
[1724442734566,8.6627,2749.7,2748.1,4.23405817]
[1724442734567,3.0,2749.4,2748.1,4.23405817]
[1724442734762,3.0,2749.6,2748.3,3.63859]
[1724442735715,3.0,2749.6,2748.4,3.63839]
[1724442735716,2.95,2749.6,2748.4,3.63839]
[1724442735922,3.60868,2749.6,2748.4,3.63839]
[1724442736230,3.60868,2749.6,2748.3,5.4443]
[1724442736519,3.60868,2749.6,2748.4,5.4443]
[1724442737419,3.60868,2749.6,2748.5,5.5515]
[1724442738707,3.0,2749.8,2748.6,5.1398]
[1724442738958,3.0,2749.8,2748.7,5.1398]
[1724442740714,3.637,2749.6,2748.7,5.1398]
[1724442741862,3.63708,2749.5,2748.7,5.1398]
[1724442742096,0.727408,2749.4,2748.7,5.1398]
[1724442742383,7.364598,2749.4,2748.7,5.1398]
[1724442742562,6.63719,2749.4,2748.7,5.1398]
[1724442742929,3.6373,2749.3,2748.7,5.1398]
[1724442743169,6.63719,2749.4,2748.7,5.1398]
[1724442743579,3.0,2749.4,2748.7,5.1398]
[1724442743888,0.3,2749.3,2748.7,5.1398]
[1724442744094,3.0,2749.3,2748.7,5.1398]
[1724442744271,3.0,2749.6,2748.7,5.1398]
[1724442745436,3.63703,2749.5,2748.7,5.1398]
[1724442745810,3.0,2749.4,2748.7,5.1398]
[1724442746432,3.63736,2749.3,2748.7,5.1398]
[1724442746632,0.663736,2749.2,2748.7,5.1398]
[1724442748131,3.0,2749.4,2748.7,5.1398]
[1724442748331,3.0,2749.6,2748.7,5.1398]
[1724442749010,3.6365,2749.9,2748.7,5.1398]
[1724442749011,0.06337672,2750.0,2748.8,8.82972]
[1724442749287,0.42340582,2750.1,2748.9,3.63778]
[1724442749488,0.42340582,2750.1,2749.0,5.1918]
[1724442749647,0.42340582,2750.1,2749.1,5.1918]
[1724442750667,0.42340582,2750.1,2749.1,3.63754]
[1724442750870,3.63575,2750.5,2749.2,5.0623]
[1724442751077,6.63591,2750.4,2749.2,5.0623]
[1724442751640,3.63646,2750.0,2749.2,5.0623]
[1724442751988,3.63664,2749.8,2749.2,5.0623]
[1724442752139,0.363664,2749.7,2749.2,5.0623]
[1724442752700,3.0,2750.1,2749.2,5.0623]
[1724442752835,3.0,2750.3,2749.2,5.0623]
[1724442753959,3.63611,2750.2,2749.2,5.0623]
[1724442754141,3.0,2750.1,2749.2,5.0623]
[1724442755665,3.0,2750.3,2749.2,5.0623]
[1724442755983,3.0,2750.3,2749.2,5.081]
[1724442756463,3.63563,2750.6,2749.2,5.081]
[1724442756665,3.63563,2750.6,2749.4,5.081]
[1724442757856,3.0,2750.5,2749.4,5.081]
[1724442758879,3.0,2750.5,2749.5,5.081]
[1724442760322,3.63591,2750.4,2749.5,5.081]
[1724442760619,3.63605,2750.3,2749.5,5.081]
[1724442762023,3.58605,2750.3,2749.5,5.081]
[1724442762163,3.0,2750.5,2749.5,5.081]
[1724442762474,3.0,2750.5,2749.6,5.0819]
[1724442762672,6.63523,2750.9,2749.7,5.0819]
[1724442762865,3.63534,2750.8,2749.7,5.0819]
[1724442763065,3.0,2750.7,2749.7,5.0819]
[1724442763527,6.63544,2750.7,2749.7,5.0819]
[1724442764018,3.0,2750.7,2749.7,5.0819]
[1724442764213,0.3,2750.6,2749.7,5.0819]
[1724442764416,6.63554,2750.7,2749.7,5.0819]
[1724442764661,3.63557,2750.6,2749.7,5.0819]
[1724442764784,3.63571,2750.5,2749.7,5.0819]
[1724442764984,3.63557,2750.6,2749.7,5.0819]
[1724442765294,0.663557,2750.5,2749.7,5.0819]
[1724442765681,3.663557,2750.5,2749.7,5.0819]
[1724442765985,3.63585,2750.4,2749.7,5.0819]
[1724442766703,3.663557,2750.5,2749.7,5.0819]
[1724442767333,3.63558,2750.6,2749.7,5.0819]
[1724442767531,3.63591,2750.4,2749.7,5.0819]
[1724442767868,3.0,2750.3,2749.7,5.0819]
[1724442768080,6.63606,2750.3,2749.7,5.0819]
[1724442768627,3.0,2750.3,2749.7,5.0819]
[1724442768784,0.663591,2750.2,2749.7,5.0819]
[1724442770507,3.0,2750.5,2749.7,5.0819]
[1724442770807,3.636,2750.3,2749.7,5.0819]
[1724442771012,3.0,2750.2,2749.7,5.0819]
[1724442771387,3.0,2750.4,2749.7,5.0819]
[1724442771592,0.66358,2750.3,2749.7,5.0819]
[1724442773091,4.29956,2750.3,2749.7,5.0819]
[1724442773292,3.0,2750.2,2749.7,5.0819]
[1724442774099,0.66358,2750.3,2749.7,5.0819]
[1724442776313,3.0,2750.4,2749.7,5.0819]
[1724442776491,6.63564,2750.6,2749.7,5.0819]
[1724442776694,6.63564,2750.6,2749.8,0.07272482]
[1724442776896,7.27055,2750.9,2749.9,5.4615]
[1724442777096,0.727055,2750.8,2749.9,5.4615]
[1724442777291,3.63526,2750.9,2749.9,5.4615]
[1724442777695,3.63572,2750.5,2749.9,5.4615]
[1724442778701,7.27103,2750.7,2749.9,5.4615]
[1724442778902,3.0,2750.6,2749.9,5.4615]
[1724442780441,6.63565,2750.6,2749.9,5.4615]
[1724442780726,4.662815,2750.5,2749.9,5.4615]
[1724442781695,1.027115,2750.5,2749.9,5.4615]
[1724442782219,4.662835,2750.5,2749.9,5.4615]
[1724442782420,3.63583,2750.4,2749.9,5.4615]
[1724442782632,3.0,2750.3,2749.1,5.4735]
[1724442782841,7.4021335,2750.4,2749.2,5.4735]
[1724442784006,3.7662835,2750.4,2749.3,5.4735]
[1724442784267,3.7662835,2750.4,2748.7,19.84]
[1724442784268,3.0,2750.4,2749.6,5.4735]
[1724442784555,3.63537,2750.8,2749.6,5.4735]
[1724442784556,3.0,2750.7,2749.6,5.4735]
[1724442785961,3.63569,2750.6,2749.6,5.4735]
[1724442786268,3.0,2750.5,2749.6,5.4735]
[1724442786410,0.663569,2750.4,2749.6,5.4735]
[1724442787054,4.299479,2750.4,2749.6,5.4735]
[1724442787953,7.935419,2750.4,2749.6,5.4735]
[1724442788272,4.299479,2750.4,2749.6,5.4735]
[1724442788843,7.935429,2750.4,2749.6,5.4735]
[1724442789151,3.63618,2750.2,2749.6,5.4735]
[1724442790035,4.0935429,2750.3,2749.6,5.4735]
[1724442790378,0.663569,2750.4,2749.6,5.4735]
[1724442791152,2.66362188,2751.1,2749.6,5.4735]
[1724442791153,3.0,2750.7,2749.7,5.6097]
[1724442791299,7.27024,2751.0,2749.7,5.6097]
[1724442791607,0.57017981,2750.3,2749.7,5.6097]
[1724442791802,6.63521,2750.9,2749.7,5.6097]
[1724442791999,0.57016394,2750.2,2749.7,5.6097]
[1724442792496,0.57017166,2750.1,2749.7,5.6097]
[1724442795881,3.0,2750.6,2749.7,5.6097]
[1724442798996,4.027032,2750.8,2749.7,5.6097]
[1724442799226,3.0,2750.8,2749.8,5.2503]
[1724442800798,6.3053279,2751.1,2749.9,3.63642]
[1724442801119,3.63494,2751.1,2750.0,4.554]
[1724442802035,7.26993,2751.1,2750.0,4.554]
[1724442802337,3.63494,2751.1,2750.0,4.554]
[1724442802557,3.0,2751.0,2750.0,4.554]
[1724442802690,3.0,2751.0,2749.9,4.554]
[1724442803603,6.63514,2751.0,2749.9,4.554]
[1724442804293,3.6352,2750.9,2749.9,4.554]
[1724442804493,3.63563,2750.6,2749.9,4.554]
[1724442804697,3.63571,2750.5,2749.9,4.554]
[1724442804892,3.63571,2750.5,2749.3,3.63726]
[1724442804893,3.63597,2750.3,2749.4,4.4872]
[1724442805125,3.727134,2750.4,2749.4,4.4872]
[1724442805853,3.0,2750.4,2749.5,4.4872]
[1724442806000,6.30516216,2750.7,2749.5,4.4872]
[1724442806001,3.0,2750.6,2749.6,4.8545]
[1724442806309,3.63552,2750.7,2749.6,4.8545]
[1724442806508,3.0,2750.6,2749.6,4.8545]
[1724442807598,3.0,2750.7,2749.7,4.7112]
[1724442807816,1.027052,2750.7,2749.7,4.7112]
[1724442808544,2.66965216,2751.0,2749.7,4.7112]
[1724442808755,7.46196768,2751.6,2749.5,4.23405817]
[1724442808756,2.66965216,2751.3,2750.5,4.7112]
[1724442808960,0.1339736,2751.6,2750.7,4.7112]
[1724442809238,0.1339736,2751.6,2750.8,4.7112]
[1724442810039,3.6344,2751.5,2750.8,4.7112]
[1724442810196,3.7683436,2751.6,2750.8,4.7112]
[1724442810197,0.1339736,2751.6,2750.8,4.7112]
[1724442810399,3.63465,2751.3,2750.8,4.7112]
[1724442810594,0.1339736,2751.6,2750.1,4.7112]
[1724442810595,3.63484,2751.2,2750.1,4.7112]
[1724442810798,3.63462,2751.4,2750.1,4.7112]
[1724442810998,3.63462,2751.4,2750.2,4.7112]
[1724442810999,3.6346,2751.4,2750.2,4.7112]
[1724442811503,3.0,2751.3,2750.2,4.7112]
[1724442812193,3.0,2751.3,2750.3,4.7112]
[1724442812414,0.1339736,2751.6,2750.5,3.63569]
[1724442812653,4.14504696,2751.6,2750.7,4.7112]
[1724442812860,3.63439,2751.5,2750.7,4.7112]
[1724442813358,0.51077696,2751.6,2750.7,4.7112]
[1724442813517,3.51077696,2751.6,2750.7,4.7112]
[1724442813735,3.63445,2751.5,2750.7,4.7112]
[1724442813915,1.0779497,2751.4,2750.7,4.7112]
[1724442814367,4.7125397,2751.4,2750.7,4.7112]
[1724442815469,1.0779497,2751.4,2750.7,4.7112]
[1724442815768,3.51077696,2751.6,2750.7,4.7112]
[1724442815955,0.51077696,2751.6,2750.7,4.7112]
[1724442816155,3.6346,2751.4,2750.7,4.7112]
[1724442816517,3.0,2751.3,2750.7,4.7112]
[1724442816870,4.661782,2751.2,2750.7,4.7112]
[1724442817490,4.661782,2751.2,2749.9,4.8285]
[1724442817654,3.0,2751.3,2749.9,4.8285]
[1724442817655,3.0,2751.3,2750.1,8.46461]
[1724442817854,3.0,2751.3,2750.2,4.6967]
[1724442818103,3.0,2751.4,2750.2,4.6967]
[1724442818480,6.63451,2751.4,2750.2,4.6967]
[1724442818979,3.63466,2751.3,2750.2,4.6967]
[1724442819286,0.663466,2751.2,2750.2,4.6967]
[1724442820975,4.298246,2751.2,2750.2,4.6967]
[1724442821377,3.63495,2751.1,2750.2,4.6967]
[1724442821776,3.63507,2751.0,2750.2,4.6967]
[1724442822299,3.63492,2751.1,2750.2,4.6967]
[1724442822459,3.63525,2750.9,2750.2,4.6967]
[1724442822892,3.0,2750.8,2750.2,4.6967]
[1724442823185,7.27108,2750.7,2750.2,4.6967]
[1724442823396,3.0,2750.6,2750.2,4.6967]
[1724442823560,0.663552,2750.5,2750.2,4.6967]
[1724442823745,6.63541,2750.8,2750.2,4.6967]
[1724442823951,3.63544,2750.7,2750.2,4.6967]
[1724442824292,3.0,2750.6,2750.2,4.6967]
[1724442825060,3.63606,2750.3,2749.4,4.6967]